Cogmind - Beta 16 @@@ ROGUE MODE // 2026.01.01 @ 10:27:53 Player: cromly Result: Destroyed by 9C-6FY(R) with Subdweller Machine Gun Performance ------------- Evolutions (0) 0 Regions Visited (3) 600 Robots Destroyed (10) 50 Value Destroyed (400) 400 Prototype IDs (0) 0 Alien Tech Used (0) 0 Bonus (-31) -31 TOTAL SCORE: 1019 Bonus ------- Friendly Fire -31 Cogmind --------- Core Integrity 0/250 Matter 115/300 Energy 308/310 System Corruption 1% Temperature Cool (0) Movement Hovering (131) Ox1 Location -10/Subcaves Parts ------- > --- POWER (1) -------- Fission Core > --- PROPULSION (2) --- Hover Unit Combat Airjet > --- UTILITY (2) ------ Small Storage Unit Launcher Guidance Computer > --- WEAPON (2) ------- Battle Rifle Subdweller Machine Gun > --- INVENTORY (8) ---- Ion Engine Ion Engine Hover Unit Hover Unit Hover Unit Peak State ------------ > --- POWER ------------ Fission Core > --- PROPULSION ------- Hover Unit Combat Airjet > --- UTILITY ---------- Small Storage Unit Launcher Guidance Computer > --- WEAPON ----------- Battle Rifle Subdweller Machine Gun > --- INVENTORY -------- Ion Engine Ion Engine Hover Unit Hover Unit Hover Unit [Rating: 20] Favorites ----------- Power Light Ion Engine Engine Light Ion Engine Power Core Fission Core Propulsion Light Treads Treads Light Treads Hover Unit Hover Unit Utility Small Storage Unit Storage Small Storage Unit Processor Launcher Guidance Computer Protection Power Shielding Weapon Assault Rifle Ballistic Gun Assault Rifle Launcher Mini Grenade Launcher Build | -11 -10 -10 -10 ------- Run | Yrd Mat Min Sub Slots Evolved . | . . . . Power . | . . . . Propulsion . | . . . . Utility . | . . . . Weapon . | . . . . Parts Attached 17 | 6 1 6 4 Power 2 | 1 . 1 . Engine 1 | 1 . . . Core 1 | . . 1 . Reactor . | . . . . Propulsion 6 | 2 . 3 1 Treads 2 | 2 . . . Leg . | . . . . Wheel . | . . . . Hover 4 | . . 3 1 Flight . | . . . . Utility 3 | 1 1 1 . Device . | . . . . Storage 1 | 1 . . . Processor 1 | . . 1 . Hackware . | . . . . Protection 1 | . 1 . . Artifact . | . . . . Weapon 6 | 2 . 1 3 Energy Gun . | . . . . Energy Cannon . | . . . . Ballistic Gun 5 | 2 . 1 2 Ballistic Cannon . | . . . . Launcher 1 | . . . 1 Special Weapon . | . . . . Impact Weapon . | . . . . Slashing Weapon . | . . . . Piercing Weapon . | . . . . Special Melee Weapon . | . . . . Unidentified Prototypes . | . . . . Parts Lost 4 | . . . 4 Power . | . . . . Propulsion 1 | . . . 1 Utility . | . . . . Weapon 3 | . . . 3 Highest Loss Streak 2 | . . . 2 To Critical Strikes . | . . . . Average Backups 5 | 1 3 7 5 Power 1 | . 1 2 2 Propulsion 3 | . 1 5 3 Utility . | . . . . Weapon . | . . . . Tool/Special . | . . . . Unused Backups 9 | . 4 . 5 Power 2 | . . . 2 Propulsion 3 | . . . 3 Utility 3 | . 3 . . Weapon 1 | . 1 . . Tool/Special . | . . . . Average Slot Usage (%) 95 | . 97 99 86 Engine 9 | . 14 13 . Core 4 | . . . 14 Treads 19 | . 28 26 . Hover 8 | . . 1 28 Storage 14 | . 14 14 14 Processor 4 | . . . 14 Protection 9 | . 11 13 . Ballistic Gun 20 | . 28 27 3 Launcher 3 | . . . 11 Peak Build Rating 20 | 6 7 18 20 Average Rating 9 | 5 6 7 17 On Entrance 7 | . 6 7 18 Avg Prop Armor Cover (%) . | . . . . Naked Turns . | . . . . Heaviest Build 21 | 12 13 19 21 Greatest Support 40 | 40 40 40 18 Greatest Overweight (x) 1 | . . 1 1 Average Overweight (x) . | . . . . Largest Inventory Capacity 8 | 8 8 8 8 Average Capacity 7 | 7 8 8 8 Most Carried 8 | 2 8 8 7 Average Carried 5 | 1 3 7 5 Final Capacity 8 | 8 8 8 8 Final Carried 8 | 2 8 7 5 Class Distribution -------------------- 77% | Mutant 22% | Scavenger-Mutant Dominant Class ---------------- Mutant | -10/Materials Mutant | -10/Mines Scavenger-Mutant | -10/Subcaves Resources | -11 -10 -10 -10 ----------- Run | Yrd Mat Min Sub Matter Collected 549 | 207 . 202 140 Remotely . | . . . . Salvage Created 384 | . . 65 319 Parts 28 | . . . 28 Haulers Intercepted . | . . . . Recyclers Shooed . | . . . . Parts Field Recycled . | . . . . Retrieved Matter . | . . . . Parts Self-Destructed . | . . . . Prevented . | . . . . Parts Restored . | . . . . Kills | -11 -10 -10 -10 ------- Run | Yrd Mat Min Sub Combat Hostiles Destroyed 14 | . . 4 10 Guns 4 | . . 4 . AOE 10 | . . . 10 Classes Destroyed 2 | . . 1 1 Subdweller 10 | . . . 10 Assembled 4 | . . 4 . Best Kill Streak 6 | . . 3 6 Combat Bots Only 6 | . . 3 6 Max Kills in Single Turn 2 | . . 1 2 Gunslinging . | . . . . Exploded 2 | . . . 2 Melee . | . . . . Uniques/NPCs Destroyed . | . . . . Combat | -11 -10 -10 -10 -------- Run | Yrd Mat Min Sub Hostile Shots Fired 49 | . . 23 26 Missed 17 | . . 8 9 Hits 32 | . . 15 17 Melee 4 | . . 4 . Projectile 28 | . . 11 17 Damage Taken 884 | . . 293 591 Core 268 | . . 24 244 Absorbed by Shields . | . . . . Redirected to Shielding 12 | . . 12 . Core Remaining (%) 100 | 100 . . . Volleys Fired 55 | . 2 18 35 Largest 2 | . 2 2 2 Hottest 55 | . 40 40 55 Shots Fired 78 | . 4 36 38 Gun 50 | . 4 36 10 Cannon . | . . . . Launcher 28 | . . . 28 Special . | . . . . Kinetic 50 | . 4 36 10 Thermal . | . . . . Explosive 28 | . . . 28 Electromagnetic . | . . . . Robot Hit Streak 8 | . 1 3 8 Robot Miss Streak 8 | . 3 8 1 Penetration Max . | . . . . Secondary Targets 2 | . . 2 . Max Gunslinging Chain 1 | . . 1 . Shots Hit Robots 31 | . 1 15 15 Core Hits 26 | . 1 9 16 Critical Kills . | . . . . Critical Parts Destroyed . | . . . . Critical Strikes . | . . . . Melee Attacks . | . . . . Impact . | . . . . Slashing . | . . . . Piercing . | . . . . Sneak Attacks . | . . . . Combat Hostiles . | . . . . Follow-up Attacks . | . . . . Damage Inflicted 1152 | . 19 157 976 Guns 257 | . 13 157 87 Cannons . | . . . . Explosions 889 | . . . 889 Melee . | . . . . Ramming 6 | . 6 . . Kinetic 257 | . 13 157 87 Thermal . | . . . . Explosive 889 | . . . 889 Electromagnetic . | . . . . Impact . | . . . . Slashing . | . . . . Piercing . | . . . . Highest Corruption 1 | . . . 1 Average Corruption 1 | . . . 1 Corruption Purged . | . . . . Corruption Blocked . | . . . . Overload Shots . | . . . . Overflow Damage . | . . . . Projectiles . | . . . . Explosions . | . . . . Melee . | . . . . Knockbacks . | . . . . Impact . | . . . . Kinetic . | . . . . Secondary . | . . . . Self-Inflicted Damage 175 | . . . 175 Shots 6 | . . . 6 Rammed 2 | . 1 1 . Targets Rammed 2 | . 1 1 . Kicked . | . . . . Crushed . | . . . . Highest Temperature . | . . . . Average Temperature . | . . . . Received Heat Transfer 54 | . . . 54 Siege Activations . | . . . . Martial Activations . | . . . . Shielding Activations . | . . . . Robots Disrupted . | . . . . Combat Hostiles . | . . . . Robots Corrupted . | . . . . Combat Hostiles . | . . . . Parts Fried . | . . . . Impact Corruptions . | . . . . Robots Melted . | . . . . Combat Hostiles . | . . . . Parts Melted . | . . . . Heat Transferred . | . . . . Parts Sabotaged . | . . . . Parts Stolen . | . . . . Parts Stripped . | . . . . Power Chain Reactions . | . . . . Alert | -11 -10 -10 -10 ------- Run | Yrd Mat Min Sub Maximum Alert Level . | . . . . Low Security (%) 100 | 100 100 100 . Level 1 . | . . . . Level 2 . | . . . . Level 3 . | . . . . Level 4 . | . . . . Level 5 . | . . . . High Security . | . . . . Max Security . | . . . . Peak Influence . | . . . . Initial . | . . . . Average . | . . . . Influence Increases . | . . . . Influence Decreases . | . . . . Squads Dispatched . | . . . . Investigation . | . . . . Extermination . | . . . . Reinforcement . | . . . . Assault . | . . . . Garrison . | . . . . Intercept . | . . . . Searches Triggered . | . . . . Construction Impeded . | . . . . Haulers Reinforced . | . . . . Active Scanning Responses . | . . . . Cargo Convoy Interrupts . | . . . . Stealth | -11 -10 -10 -10 --------- Run | Yrd Mat Min Sub Distress Signals . | . . . . Communications Jammed . | . . . . Distress Signals . | . . . . Times Spotted 19 | . 3 5 11 Peak Tracking Total 3 | . 3 3 2 Tactical Retreats . | . . . . Traps | -11 -10 -10 -10 ------- Run | Yrd Mat Min Sub Traps Triggered . | . . . . Indirectly . | . . . . Trap Hack Attempts . | . . . . Triggered . | . . . . Disarmed . | . . . . Reprogrammed . | . . . . Reused . | . . . . Traps Extracted . | . . . . Installed . | . . . . Triggered . | . . . . Machines | -11 -10 -10 -10 ---------- Run | Yrd Mat Min Sub Machines Disabled . | . . . . Max in Single Turn . | . . . . Machines Repaired . | . . . . Machines Dismantled . | . . . . Machines Sabotaged . | . . . . Overloaded Fab Kills . | . . . . Hacking | -11 -10 -10 -10 --------- Run | Yrd Mat Min Sub Machines Accessed 1 | . 1 . . Terminals 1 | . 1 . . Fabricators . | . . . . Repair Stations . | . . . . Recycling Units . | . . . . Scanalyzers . | . . . . Garrison Access . | . . . . Total Hacks 3 | . 3 . . Successful 2 | . 2 . . Failed 1 | . 1 . . Catastrophic . | . . . . Database Lockouts . | . . . . Manual . | . . . . Terminals 3 | . 3 . . Fabricators . | . . . . Repair Stations . | . . . . Recycling Units . | . . . . Scanalyzers . | . . . . Garrison Access . | . . . . Terminal Hacks 2 | . 2 . . Record 1 | . 1 . . Terminal Index 1 | . 1 . . Fabricator Hacks . | . . . . Repair Station Hacks . | . . . . Recycling Unit Hacks . | . . . . Scanalyzer . | . . . . Garrison Access Hacks . | . . . . Unauthorized Hacks . | . . . . Terminals . | . . . . Fabricators . | . . . . Repair Stations . | . . . . Recycling Units . | . . . . Scanalyzers . | . . . . Garrison Access . | . . . . Data Cores Recovered . | . . . . Used . | . . . . Hacking Detections 1 | . 1 . . Full Trace Events . | . . . . Feedback Events . | . . . . Feedback Blocked . | . . . . Robot Schematics Acquired . | . . . . Robots Built . | . . . . Authchips . | . . . . Time . | . . . . Total Robot Build Rating . | . . . . Part Schematics Acquired . | . . . . Parts Built . | . . . . Authchips . | . . . . Time . | . . . . Total Part Build Rating . | . . . . Part Studies Acquired . | . . . . Parts Repaired . | . . . . Time . | . . . . Parts Recycled . | . . . . Recycled Matter . | . . . . Retrieved Matter . | . . . . Retrieved Components . | . . . . Parts Scanalyzed . | . . . . Part Schematics Acquired . | . . . . Parts Damaged . | . . . . Bothacking | -11 -10 -10 -10 ------------ Run | Yrd Mat Min Sub Used RIF Installer . | . . . . Robots Hacked . | . . . . Non-combat . | . . . . Combat . | . . . . Robot Hacks Applied . | . . . . Relay Couplers Released . | . . . . Fabnet Peak Effective % . | . . . . Robots Rewired . | . . . . Allies Hacked . | . . . . Hacks Repelled . | . . . . Allies | -11 -10 -10 -10 -------- Run | Yrd Mat Min Sub Total Allies . | . . . . Largest Group . | . . . . Highest-Rated Group . | . . . . Highest-Rated Ally . | . . . . Total Orders . | . . . . Ally Attacks . | . . . . Total Damage . | . . . . Kills . | . . . . Allies Corrupted . | . . . . Allies Melted . | . . . . Intel | -11 -10 -10 -10 ------- Run | Yrd Mat Min Sub Active Infowar (turns) . | . . . . Robot Analysis Total . | . . . . Derelict Logs Recovered . | . . . . Drone Launches . | . . . . Drone Recoveries . | . . . . Exploration | -11 -10 -10 -10 ------------- Run | Yrd Mat Min Sub Turns Passed 1070 | 76 281 437 276 Spaces Moved 753 | 46 163 246 298 Core 7 | 7 . . . Treads 423 | 39 163 221 . Legs . | . . . . Wheels . | . . . . Hover 323 | . . 25 298 Flight . | . . . . Fastest Speed 50 | 50 160 56 66 Average Speed 119 | 143 160 151 67 Slowest Speed 160 | 160 160 160 131 Overloaded Moves . | . . . . Propulsion Burnouts . | . . . . Robots Hopped . | . . . . Potential Cave-ins 7 | . . . 7 Cave-ins Triggered 1 | . . . 1 Exploration Rate (%) 22 | 5 25 46 14 Regions Visited 3 Branch Regions 2 Pre-discovered Areas . | . . . . Known Exits Taken . | . . . . Unknown Exits Taken 3 | 1 1 1 . Scrap Searched . | . . . . Spaces Dug 58 | . . . 58 Terrain Destroyed 276 | . . . 276 Melee . | . . . . Projectile . | . . . . AOE 276 | . . . 276 Terrain Rammed . | . . . . Walls Destroyed . | . . . . Machines Disabled . | . . . . Actions | -11 -10 -10 -10 --------- Run | Yrd Mat Min Sub Total 848 | 53 180 277 338 Wait 1 | . . . 1 Move 750 | 45 162 245 298 Hop . | . . . . Pick Up 13 | 2 10 1 . Fast Attach 11 | 6 1 2 2 Attach 2 | . . . 2 Detach . | . . . . Swap 4 | . . 4 . Drop 10 | . 4 6 . Fire 55 | . 2 18 35 Melee . | . . . . Ram . | . . . . Kick . | . . . . Crush 2 | . 1 1 . Escape Stasis . | . . . . Rewire . | . . . . Trap . | . . . . Miscellaneous . | . . . . Route ------- -11/Scrapyard -10/Materials -10/Mines -10/Subcaves History --------- Turn | Location | Event 9 | -11/Scrapyard | Discovered new exit (range 15) 77 | -11/Scrapyard | Entered Materials 77 | -10/Materials | Discovered new exit (range 7) 336 | -10/Materials | Build established: Mutant 358 | -10/Materials | Entered Mines 390 | -10/Mines | Met a Derelict bent on vengeance 652 | -10/Mines | Assembled infested the area 657 | -10/Mines | Assisted by a Guerilla fighting off Assembled 730 | -10/Mines | Discovered new exit (range 12) 795 | -10/Mines | Entered Subcaves 796 | -10/Subcaves | Approached by a straggling Scientist 799 | -10/Subcaves | Ambushed by Subdwellers from Twisted Machinery 833 | -10/Subcaves | Core integrity fell below 50% 1006 | -10/Subcaves | Ambushed by Subdweller buried in earth 1017 | -10/Subcaves | Ambushed by Subdweller buried in earth 1023 | -10/Subcaves | Ambushed by Subdweller buried in earth 1023 | -10/Subcaves | Ambushed by Subdweller buried in earth 1029 | -10/Subcaves | Core integrity fell below 20% 1030 | -10/Subcaves | Ambushed by Subdweller buried in earth 1039 | -10/Subcaves | Ambushed by Subdweller buried in earth 1051 | -10/Subcaves | Ambushed by Subdweller buried in earth 1053 | -10/Subcaves | Crushed by falling debris 1071 | -10/Subcaves | Destroyed by 9C-6FY(R) with Subdweller Machine Gun Last Messages --------------- 01051_ Scrap Shield Fragment crushed. 01051_ The unstable cave ceiling collapses. 01052_ N0-S8F(R): "SLEEPOVER!" 01052_ The unstable cave ceiling collapses. 01053_ Crushed by falling debris. [Achievement: Unlikely Earthworm] 01053_ Mni. Grenade Launcher destroyed. 01053_ System corrupted by crushing effect (+1). 01053_ The unstable cave ceiling collapses. 01058_ Subatomizers dissect the Sub. Monowheel. 01059_ The unstable cave ceiling collapses. 01060_ 9C-6FY(R) affixes Scrap Shield Fragment to Scrap Shield. 01061_ N0-S8F(R) affixes Scrap Shield Fragment to Scrap Shield. 01061_ Acquired Sub. Machine Gun. 01064_ Acquired Battle Rifle. 01066_ 9C-6FY(R) affixes Scrap Shield Fragment to Scrap Shield. 01069_ Subatomizers dissect the Sub. Monowheel. Map ----- +----------------------------------------------------+ | ?????????????????????????????????????????????????? | | ?????????????????????????????????????????????????? | | ?????????????????????????????????????????????????? | | ?????????????????????????????????????????????????? | | ?????????????????????????????????????????????????? | | ??#######????????????????????????????????????????? | | ??# # ##???????????????????????????????????????? | | ??# #???????????????????###?##??????????????? | | ??# ###???????????????#### ## ###????????????? | | ??# ###??????????????## # ###??????????? | | ??# ##?????????????# #??????????? | | ??# #????????????## # # #??????????? | | ??# # ##????????????# # =[ # # # #??????????? | | ??## "#?????????????# ### #??????????? | | ??# #?????????????# # #???????????? | | ??# #?????????????# ????????????? | | ??## ####????????????### # # # #????????????? | | ??## " ##?????????????# ## #????????????? | | ??# #?????????????# #?????????????? | | ??# ##????????????# [!# ## ##?????????????? | | ??# #####?????####R#! ## #??????????????? | | ??## ## ####### c * ! # ###??????????????? | | ??# # ### # # = # #???????????????? | | ??## #### R &&[##???????????????? | | ??## ### # # #????????????????? | | ??# # # ## @ ##????????????????? | | ??# # ### ## ## # #?????????????????? | | ??## ########## ## ### ##?????????????????? | | ??# ##???## ## ##?##??????????????????? | | ??# ###????# #### #?????????????????????? | | ??# ####???# " ##?## ##?????????????????????? | | ?## # ##??# """##??# #?????????????????????? | | ?# #??# "####??### ##?????????????????????? | | ?## &= #??# ####?## #??????????????????????? | | ?# ## #??#* " #?# #??????????????????????? | | ?### ! #?#?## ##### ##??????????????????????? | | ??## ##?## #####"" ##???????????????????????? | | ??# ### "###""" ##?##?????????????????????? | | ??# """"""" " ### ##????????????????????? | | # # """" " ## #????????????????????? | | ## ## #"" " #????????????????????? | | ?### # &= ###""" % #????????????????????? | | ???## & #?##" ### #????????????????????? | | ???# && #??#"" #?## #????????????????????? | | ???# ####" #??? #????????????????????? | | ???# ### ## " ########????????????????????? | | ???## #?## ## " ## #??????????????????????? | | ??### ##??# ######% ##?????????????????????? | | ??# ####% % #???### #?????????????????????? | | ??# ### #????## #?????????????????????? | +----------------------------------------------------+ Best States ------------- Heat Dissipation 25 Energy Generation 18 Energy Capacity 310 Matter Stores 300 Matter Capacity 300 Sight Range 16 Terrain Scan Density 10 Power Shielding 33 Evasion (%) 51 Launcher Accuracy 20 Recoil Reduction 2 Item Schematics ----------------- None Robot Schematics ------------------ None Fabricated ------------ Nothing Repaired ---------- Nothing Studied --------- None Alien Tech Used ----------------- None Achievements -------------- Do Not Disturb Dramatic Entrance Unlikely Earthworm Challenges ------------ None Game ------ Seed ContainmentWarpFlamer Manual? 0 Play Time 00:14:56 Cumulative 11.9 hours Start 2026.01.01 @ 10:04:23 End 2026.01.01 @ 10:27:53 Sessions 1 Manual Loads 0 Difficulty Rogue Special Mode None Game No. 22 Rogue 22 Adventurer 0 Explorer 0 Win Type - Total 0 Types 0/0/0/0/0/0/0/0/0/0 Lore% 8 Gallery% 11 Achievement% 10 Wizard Run 0 Options --------- Layout 1 ASCII 0 Keyboard 0 Movement Numpad Keybinds 0 Fullscreen 2 Font 48/Smallcaps Map View 50x35 Zoom Use 0% Tactical HUD 1 Map Filters NONE Filters NONE Steam 1 RUN: cf6142d3-785f-485c-93bc-2e0761185550